[Event "*** Titled Tuesday Blitz"]
[Site "Chess.com"]
[Date "2020.05.12"]
[Round "2"]
[White "Gareth-Bale11"]
[Black "Poghosyan_Suren"]
[Result "1/2-1/2"]
[WhiteElo "2717"]
[BlackElo "2495"]
[TimeControl "180+1"]
[EndTime "10:17:50 PDT"]
[Termination "Game drawn by repetition"]

1. d4 {[%clk 0:03:00]} 1... Nf6 {[%clk 0:02:59.2]} 2. c4 {[%clk 0:02:59.5]} 2...
c5 {[%clk 0:02:57.9]} 3. d5 {[%clk 0:02:59.5]} 3... b5 {[%clk 0:02:58.1]} 4.
cxb5 {[%clk 0:02:59.1]} 4... a6 {[%clk 0:02:58.7]} 5. bxa6 {[%clk 0:03:00]} 5...
Bxa6 {[%clk 0:02:59.3]} 6. Nc3 {[%clk 0:03:00]} 6... d6 {[%clk 0:02:59.9]} 7. e4
{[%clk 0:02:59.8]} 7... Bxf1 {[%clk 0:03:00.8]} 8. Kxf1 {[%clk 0:03:00.7]} 8...
g6 {[%clk 0:03:01.6]} 9. Nf3 {[%clk 0:03:01]} 9... Bg7 {[%clk 0:03:02.5]} 10. h3
{[%clk 0:02:59.2]} 10... O-O {[%clk 0:03:02]} 11. g3 {[%clk 0:02:59.4]} 11...
Nbd7 {[%clk 0:03:01.9]} 12. Kg2 {[%clk 0:02:59.7]} 12... Ra6 {[%clk 0:03:02.2]}
13. Qc2 {[%clk 0:02:56]} 13... Qa8 {[%clk 0:03:00.9]} 14. a4 {[%clk 0:02:53.8]}
14... Rb8 {[%clk 0:02:59.1]} 15. b3 {[%clk 0:02:50.1]} 15... Nxe4 {[%clk
0:02:02]} 16. Qxe4 {[%clk 0:02:48]} 16... Bxc3 {[%clk 0:01:42.1]} 17. Ra2 {[%clk
0:02:40.7]} 17... Nf6 {[%clk 0:00:51.8]} 18. Qxe7 {[%clk 0:02:35]} 18... Nxd5
{[%clk 0:00:51.2]} 19. Qe4 {[%clk 0:02:26]} 19... Rxb3 {[%clk 0:00:39.8]} 20.
Rd1 {[%clk 0:02:07.8]} 20... Nb4 {[%clk 0:00:39]} 21. Re2 {[%clk 0:01:56.2]}
21... Qxe4 {[%clk 0:00:32.4]} 22. Rxe4 {[%clk 0:01:57.1]} 22... d5 {[%clk
0:00:33]} 23. Re7 {[%clk 0:01:57.4]} 23... Kg7 {[%clk 0:00:33.3]} 24. Bf4 {[%clk
0:01:43.9]} 24... Bf6 {[%clk 0:00:20.6]} 25. Rc7 {[%clk 0:01:42.3]} 25... c4
{[%clk 0:00:19.4]} 26. Ne5 {[%clk 0:01:40.7]} 26... Bxe5 {[%clk 0:00:12.5]} 27.
Bxe5+ {[%clk 0:01:40.7]} 27... Kf8 {[%clk 0:00:13.2]} 28. a5 {[%clk 0:01:17]}
28... Nd3 {[%clk 0:00:11.2]} 29. Bd4 {[%clk 0:01:16]} 29... Rxa5 {[%clk
0:00:09.6]} 30. Bf6 {[%clk 0:01:15.7]} 30... Ra8 {[%clk 0:00:09.2]} 31. Ra1
{[%clk 0:01:15.5]} 31... Rbb8 {[%clk 0:00:06.8]} 32. Rxa8 {[%clk 0:00:53.9]}
32... Rxa8 {[%clk 0:00:07.7]} 33. Rd7 {[%clk 0:00:54.7]} 33... Rc8 {[%clk
0:00:04.4]} 34. Rxd5 {[%clk 0:00:53.9]} 34... Nb4 {[%clk 0:00:04.6]} 35. Rb5
{[%clk 0:00:52.5]} 35... Nc6 {[%clk 0:00:04.3]} 36. Rc5 {[%clk 0:00:51]} 36...
Na7 {[%clk 0:00:04.1]} 37. Ra5 {[%clk 0:00:51.1]} 37... Nc6 {[%clk 0:00:03.9]}
38. Rc5 {[%clk 0:00:51.2]} 38... Na7 {[%clk 0:00:04]} 39. Ra5 {[%clk 0:00:51.4]}
39... Nc6 {[%clk 0:00:04.5]} 40. Rc5 {[%clk 0:00:51.5]} 1/2-1/2

[Event "*** Titled Tuesday Blitz"]
[Site "Chess.com"]
[Date "2020.05.12"]
[Round "2"]
[White "Infernal_XaM"]
[Black "Gentlejimmy7"]
[Result "0-1"]
[WhiteElo "2856"]
[BlackElo "2567"]
[TimeControl "180+1"]
[EndTime "10:17:51 PDT"]
[Termination "Gentlejimmy7 won by resignation"]

1. Nf3 {[%clk 0:01:52.1]} 1... Nf6 {[%clk 0:01:53.6]} 2. c4 {[%clk 0:01:53]}
2... g6 {[%clk 0:01:54.1]} 3. Nc3 {[%clk 0:01:53]} 3... d5 {[%clk 0:01:54.4]} 4.
cxd5 {[%clk 0:01:52]} 4... Nxd5 {[%clk 0:01:55.3]} 5. Qa4+ {[%clk 0:01:52.5]}
5... Nc6 {[%clk 0:01:54.8]} 6. Qb3 {[%clk 0:01:40.2]} 6... Nb6 {[%clk
0:01:53.6]} 7. g3 {[%clk 0:01:33.4]} 7... Bg7 {[%clk 0:01:51.6]} 8. Bg2 {[%clk
0:01:33.9]} 8... Bg4 {[%clk 0:01:52.1]} 9. Ng5 {[%clk 0:01:12.5]} 9... O-O
{[%clk 0:01:45.8]} 10. Bxc6 {[%clk 0:01:12.8]} 10... bxc6 {[%clk 0:01:43.2]} 11.
f3 {[%clk 0:01:13.4]} 11... Bd7 {[%clk 0:01:38.9]} 12. d3 {[%clk 0:01:10.4]}
12... c5 {[%clk 0:01:39.1]} 13. Be3 {[%clk 0:01:08.1]} 13... Rb8 {[%clk
0:01:32.4]} 14. Qc2 {[%clk 0:01:07.6]} 14... c4 {[%clk 0:01:32.4]} 15. d4 {[%clk
0:01:07.5]} 15... e6 {[%clk 0:01:04]} 16. Nge4 {[%clk 0:01:03.1]} 16... Bc6
{[%clk 0:01:01.8]} 17. Rd1 {[%clk 0:00:54]} 17... Nd5 {[%clk 0:00:58.3]} 18. Bg5
{[%clk 0:00:54.4]} 18... f6 {[%clk 0:00:57.1]} 19. Bc1 {[%clk 0:00:53.6]} 19...
Nb4 {[%clk 0:00:53.8]} 20. Qd2 {[%clk 0:00:49.8]} 20... f5 {[%clk 0:00:48.4]}
21. Ng5 {[%clk 0:00:32.2]} 21... Qd6 {[%clk 0:00:41.6]} 22. O-O {[%clk
0:00:30.1]} 22... h6 {[%clk 0:00:40.8]} 23. Nh3 {[%clk 0:00:29.1]} 23... Rfd8
{[%clk 0:00:38.9]} 24. Kg2 {[%clk 0:00:17.8]} 24... Qxd4 {[%clk 0:00:37.2]} 25.
Qxd4 {[%clk 0:00:17.3]} 25... Rxd4 {[%clk 0:00:36.6]} 26. Rxd4 {[%clk
0:00:15.1]} 26... Bxd4 {[%clk 0:00:37.5]} 27. Bxh6 {[%clk 0:00:15.4]} 27... Bxc3
{[%clk 0:00:36.5]} 28. bxc3 {[%clk 0:00:15.7]} 28... Nxa2 {[%clk 0:00:37.1]} 29.
Bf4 {[%clk 0:00:11.5]} 29... Nxc3 {[%clk 0:00:36.4]} 30. Rc1 {[%clk 0:00:12]}
30... Nxe2 {[%clk 0:00:36.3]} 31. Rxc4 {[%clk 0:00:11.7]} 31... Rb2 {[%clk
0:00:34.2]} 32. Be5 {[%clk 0:00:08.1]} 32... Nd4+ {[%clk 0:00:30.4]} 33. Kf1
{[%clk 0:00:06.7]} 33... Bb5 {[%clk 0:00:29.8]} 0-1

[Event "*** Titled Tuesday Blitz"]
[Site "Chess.com"]
[Date "2020.05.12"]
[Round "2"]
[White "Azoulas1"]
[Black "uchenic"]
[Result "0-1"]
[WhiteElo "1916"]
[BlackElo "2473"]
[TimeControl "180+1"]
[EndTime "10:17:52 PDT"]
[Termination "uchenic won by checkmate"]

1. e4 {[%clk 0:03:00.9]} 1... e6 {[%clk 0:03:00.2]} 2. d4 {[%clk 0:02:59.7]}
2... d5 {[%clk 0:03:00.6]} 3. Nc3 {[%clk 0:02:59]} 3... Bb4 {[%clk 0:03:00]} 4.
e5 {[%clk 0:02:58.3]} 4... Qd7 {[%clk 0:03:00.1]} 5. Qg4 {[%clk 0:02:52.8]} 5...
Bf8 {[%clk 0:02:59.8]} 6. Bd2 {[%clk 0:02:48.8]} 6... b6 {[%clk 0:02:59.7]} 7.
h4 {[%clk 0:02:47.6]} 7... h5 {[%clk 0:02:58.2]} 8. Qf3 {[%clk 0:02:41.1]} 8...
Ba6 {[%clk 0:02:55.1]} 9. Rh3 {[%clk 0:02:39.5]} 9... Bxf1 {[%clk 0:02:53.1]}
10. Kxf1 {[%clk 0:02:38.6]} 10... Ne7 {[%clk 0:02:51.7]} 11. Nge2 {[%clk
0:02:36.8]} 11... Nf5 {[%clk 0:02:50.8]} 12. Rd1 {[%clk 0:02:28.6]} 12... Nc6
{[%clk 0:02:46.5]} 13. Be1 {[%clk 0:02:23.9]} 13... Be7 {[%clk 0:02:41.5]} 14.
Kg1 {[%clk 0:01:57.4]} 14... Nxh4 {[%clk 0:02:29.4]} 15. Qg3 {[%clk 0:01:47.4]}
15... g5 {[%clk 0:02:25]} 16. Bd2 {[%clk 0:01:31]} 16... Nf5 {[%clk 0:02:22.6]}
17. Qh2 {[%clk 0:01:28.3]} 17... h4 {[%clk 0:02:08.9]} 18. g4 {[%clk 0:01:21.4]}
18... Nfxd4 {[%clk 0:02:01.4]} 19. Nxd4 {[%clk 0:01:17.6]} 19... Nxd4 {[%clk
0:02:01.5]} 20. Bxg5 {[%clk 0:01:16.4]} 20... c5 {[%clk 0:01:29.5]} 21. Bxe7
{[%clk 0:01:12.2]} 21... Qxe7 {[%clk 0:01:29.5]} 22. Rxd4 {[%clk 0:01:06.8]}
22... cxd4 {[%clk 0:01:28.7]} 23. Nb5 {[%clk 0:01:06.5]} 23... Kd7 {[%clk
0:01:03.9]} 24. Nxd4 {[%clk 0:00:57.5]} 24... Qg5 {[%clk 0:00:58.6]} 25. Qg2
{[%clk 0:00:50]} 25... Qc1+ {[%clk 0:00:53.9]} 26. Qf1 {[%clk 0:00:43.2]} 26...
Qxb2 {[%clk 0:00:46.5]} 27. Rd3 {[%clk 0:00:37.5]} 27... h3 {[%clk 0:00:41]} 28.
Rd1 {[%clk 0:00:28.8]} 28... h2+ {[%clk 0:00:37.1]} 29. Kh1 {[%clk 0:00:28.5]}
29... Rac8 {[%clk 0:00:35.6]} 30. f4 {[%clk 0:00:23.7]} 30... Rc4 {[%clk
0:00:33.4]} 31. Nxe6 {[%clk 0:00:18.9]} 31... Kxe6 {[%clk 0:00:30]} 32. f5+
{[%clk 0:00:17.7]} 32... Ke7 {[%clk 0:00:29.3]} 33. Rxd5 {[%clk 0:00:16.1]}
33... Qxc2 {[%clk 0:00:26.4]} 34. f6+ {[%clk 0:00:15.5]} 34... Ke8 {[%clk
0:00:25.4]} 35. e6 {[%clk 0:00:13.8]} 35... Qe4+ {[%clk 0:00:25.1]} 36. Qg2
{[%clk 0:00:12.6]} 36... Rc1+ {[%clk 0:00:25.4]} 37. Rd1 {[%clk 0:00:11]} 37...
Rxd1# {[%clk 0:00:25.8]} 0-1

[Event "*** Titled Tuesday Blitz"]
[Site "Chess.com"]
[Date "2020.05.12"]
[Round "2"]
[White "Riptide27"]
[Black "GM_dmitrij"]
[Result "1-0"]
[WhiteElo "2572"]
[BlackElo "2890"]
[TimeControl "180+1"]
[EndTime "10:17:53 PDT"]
[Termination "Riptide27 won by resignation"]

1. d4 {[%clk 0:03:00.9]} 1... Nf6 {[%clk 0:03:00.1]} 2. c4 {[%clk 0:03:00.9]}
2... e6 {[%clk 0:03:00.4]} 3. Nc3 {[%clk 0:03:00.1]} 3... Bb4 {[%clk 0:03:00.1]}
4. e3 {[%clk 0:02:59.8]} 4... O-O {[%clk 0:02:58.3]} 5. Bd2 {[%clk 0:03:00.3]}
5... c5 {[%clk 0:02:55.9]} 6. a3 {[%clk 0:02:56.3]} 6... Bxc3 {[%clk 0:02:56.2]}
7. Bxc3 {[%clk 0:02:56.8]} 7... cxd4 {[%clk 0:02:56.7]} 8. Bxd4 {[%clk
0:02:55.1]} 8... Nc6 {[%clk 0:02:56.7]} 9. Bc3 {[%clk 0:02:54.6]} 9... Ne4
{[%clk 0:02:55.6]} 10. Rc1 {[%clk 0:02:53.6]} 10... d5 {[%clk 0:02:30]} 11. cxd5
{[%clk 0:02:52.5]} 11... exd5 {[%clk 0:02:30.9]} 12. Nf3 {[%clk 0:02:52.1]}
12... Bg4 {[%clk 0:01:48.4]} 13. Be2 {[%clk 0:02:51.1]} 13... Qb6 {[%clk
0:01:29.7]} 14. O-O {[%clk 0:02:15.7]} 14... Rad8 {[%clk 0:01:27.1]} 15. Qa4
{[%clk 0:01:36.2]} 15... Rfe8 {[%clk 0:01:07.3]} 16. Qb5 {[%clk 0:01:24.6]}
16... Nxc3 {[%clk 0:00:44.3]} 17. Rxc3 {[%clk 0:01:23.8]} 17... d4 {[%clk
0:00:44.7]} 18. Qxb6 {[%clk 0:01:23.3]} 18... axb6 {[%clk 0:00:42.6]} 19. Nxd4
{[%clk 0:01:22.5]} 19... Rxd4 {[%clk 0:00:39.3]} 20. exd4 {[%clk 0:01:20.5]}
20... Rxe2 {[%clk 0:00:36.8]} 21. Re3 {[%clk 0:01:12.8]} 21... Nxd4 {[%clk
0:00:25.9]} 22. Rxe2 {[%clk 0:01:10.8]} 22... Nxe2+ {[%clk 0:00:26]} 23. Kh1
{[%clk 0:01:10.5]} 23... Kf8 {[%clk 0:00:25.6]} 24. Re1 {[%clk 0:01:10.3]} 24...
Bh5 {[%clk 0:00:19.1]} 25. f3 {[%clk 0:00:59.4]} 25... Nd4 {[%clk 0:00:19.3]}
26. Rd1 {[%clk 0:00:59.7]} 26... Nb3 {[%clk 0:00:16.8]} 27. Rd6 {[%clk
0:00:56.1]} 27... Bg6 {[%clk 0:00:10.6]} 28. Rxb6 {[%clk 0:00:55.9]} 28... Na5
{[%clk 0:00:11.3]} 29. b4 {[%clk 0:00:55]} 29... Nc4 {[%clk 0:00:11.7]} 30. Rxb7
{[%clk 0:00:52.1]} 30... Nxa3 {[%clk 0:00:12.6]} 31. b5 {[%clk 0:00:51.3]} 31...
Nc4 {[%clk 0:00:12.9]} 32. Rc7 {[%clk 0:00:46.4]} 32... Nb6 {[%clk 0:00:11]} 33.
Rc6 {[%clk 0:00:45.5]} 33... Nd7 {[%clk 0:00:11.4]} 34. b6 {[%clk 0:00:43.4]}
34... Ke7 {[%clk 0:00:09.2]} 35. b7 {[%clk 0:00:43.3]} 35... Nb8 {[%clk
0:00:09.4]} 36. Rc8 {[%clk 0:00:43.2]} 36... Na6 {[%clk 0:00:09.7]} 37. Ra8
{[%clk 0:00:41.8]} 1-0

[Event "*** Titled Tuesday Blitz"]
[Site "Chess.com"]
[Date "2020.05.12"]
[Round "2"]
[White "Gennady_Kozlov"]
[Black "chesslh19"]
[Result "1-0"]
[WhiteElo "2598"]
[BlackElo "2188"]
[TimeControl "180+1"]
[EndTime "10:17:53 PDT"]
[Termination "Gennady_Kozlov won by resignation"]

1. b3 {[%clk 0:03:00.9]} 1... e5 {[%clk 0:02:03.2]} 2. Bb2 {[%clk 0:02:57.8]}
2... Nc6 {[%clk 0:02:02.1]} 3. e3 {[%clk 0:02:57.1]} 3... Nf6 {[%clk 0:01:57.2]}
4. d4 {[%clk 0:02:55.8]} 4... exd4 {[%clk 0:01:54.8]} 5. exd4 {[%clk 0:02:56.7]}
5... Bb4+ {[%clk 0:01:49.4]} 6. c3 {[%clk 0:02:50.8]} 6... Be7 {[%clk
0:01:48.1]} 7. Nf3 {[%clk 0:02:50.1]} 7... d5 {[%clk 0:01:48.1]} 8. Bd3 {[%clk
0:02:49.3]} 8... O-O {[%clk 0:01:48.2]} 9. O-O {[%clk 0:02:49.6]} 9... Bg4
{[%clk 0:01:48.1]} 10. h3 {[%clk 0:02:49.7]} 10... Bh5 {[%clk 0:01:48]} 11. Nbd2
{[%clk 0:02:48.3]} 11... Re8 {[%clk 0:01:40.7]} 12. Qc2 {[%clk 0:02:45.5]} 12...
Bf8 {[%clk 0:01:31.9]} 13. Rae1 {[%clk 0:02:42.2]} 13... Qd7 {[%clk 0:01:24.4]}
14. Bf5 {[%clk 0:02:37.4]} 14... Qd6 {[%clk 0:01:09.6]} 15. c4 {[%clk
0:02:35.6]} 15... Bg6 {[%clk 0:01:06.6]} 16. Bxg6 {[%clk 0:02:34.3]} 16... hxg6
{[%clk 0:01:06.2]} 17. c5 {[%clk 0:02:30.1]} 17... Qd7 {[%clk 0:01:02.4]} 18.
Ne5 {[%clk 0:02:29.7]} 18... Qf5 {[%clk 0:00:56.5]} 19. Qxf5 {[%clk 0:02:23.1]}
19... gxf5 {[%clk 0:00:56.2]} 20. Nxc6 {[%clk 0:02:23.3]} 20... bxc6 {[%clk
0:00:55.9]} 21. Nf3 {[%clk 0:02:23.7]} 21... Nd7 {[%clk 0:00:51]} 22. b4 {[%clk
0:02:20.7]} 22... f6 {[%clk 0:00:50]} 23. Bc1 {[%clk 0:02:17.2]} 23... Rxe1
{[%clk 0:00:49.6]} 24. Rxe1 {[%clk 0:02:16.6]} 24... Kf7 {[%clk 0:00:50.3]} 25.
Bf4 {[%clk 0:02:16]} 25... Rc8 {[%clk 0:00:41.1]} 26. h4 {[%clk 0:02:15]} 26...
a6 {[%clk 0:00:39]} 27. Re3 {[%clk 0:02:14.5]} 27... Rb8 {[%clk 0:00:35.6]} 28.
Rb3 {[%clk 0:02:14.1]} 28... Be7 {[%clk 0:00:24.1]} 29. Bxc7 {[%clk 0:02:11.1]}
29... Rb7 {[%clk 0:00:24.2]} 30. Bf4 {[%clk 0:02:10.5]} 30... Bd8 {[%clk
0:00:22.6]} 31. Ne1 {[%clk 0:02:08.8]} 31... a5 {[%clk 0:00:22.2]} 32. a3 {[%clk
0:02:07.2]} 32... axb4 {[%clk 0:00:17.8]} 33. axb4 {[%clk 0:02:06.8]} 33... g5
{[%clk 0:00:17.5]} 34. Bg3 {[%clk 0:02:02.8]} 34... f4 {[%clk 0:00:16.1]} 35.
Bh2 {[%clk 0:02:02.8]} 35... f5 {[%clk 0:00:14.5]} 36. hxg5 {[%clk 0:02:00.7]}
36... Bxg5 {[%clk 0:00:14.3]} 37. Nd3 {[%clk 0:02:00.7]} 37... Bf6 {[%clk
0:00:13.2]} 38. Bxf4 {[%clk 0:01:58.1]} 38... Bxd4 {[%clk 0:00:13.2]} 39. Ra3
{[%clk 0:01:57.3]} 39... Ke6 {[%clk 0:00:09.1]} 40. Ra6 {[%clk 0:01:56.6]} 40...
Nb8 {[%clk 0:00:08.2]} 41. Bxb8 {[%clk 0:01:55.5]} 41... Rxb8 {[%clk 0:00:07.9]}
42. Rxc6+ {[%clk 0:01:56.2]} 42... Ke7 {[%clk 0:00:07.5]} 43. Rd6 {[%clk
0:01:55.2]} 43... Bc3 {[%clk 0:00:07.3]} 44. Rxd5 {[%clk 0:01:52.3]} 44... f4
{[%clk 0:00:07.9]} 45. c6 {[%clk 0:01:49.4]} 45... Bxb4 {[%clk 0:00:08.2]} 46.
c7 {[%clk 0:01:49.1]} 46... Rc8 {[%clk 0:00:08.5]} 47. Nxb4 {[%clk 0:01:47.8]}
47... Rxc7 {[%clk 0:00:08.9]} 48. Rd4 {[%clk 0:01:47.6]} 48... Rc1+ {[%clk
0:00:08.4]} 49. Kh2 {[%clk 0:01:47.4]} 49... f3 {[%clk 0:00:09.2]} 50. gxf3
{[%clk 0:01:47.3]} 50... Kf6 {[%clk 0:00:09.1]} 51. f4 {[%clk 0:01:46.9]} 51...
Kf5 {[%clk 0:00:09.1]} 52. Kg3 {[%clk 0:01:46.9]} 52... Rb1 {[%clk 0:00:08.8]}
53. Nd3 {[%clk 0:01:45]} 53... Rb3 {[%clk 0:00:08.6]} 54. f3 {[%clk 0:01:44.9]}
54... Rb1 {[%clk 0:00:07.9]} 55. Rd5+ {[%clk 0:01:44.9]} 55... Kf6 {[%clk
0:00:08.4]} 56. f5 {[%clk 0:01:44.6]} 56... Rg1+ {[%clk 0:00:06.9]} 57. Kf4
{[%clk 0:01:44.4]} 57... Rh1 {[%clk 0:00:05.1]} 58. Rd6+ {[%clk 0:01:44.2]}
58... Ke7 {[%clk 0:00:05.5]} 59. Ra6 {[%clk 0:01:44.5]} 59... Kf7 {[%clk
0:00:04.9]} 60. Ne5+ {[%clk 0:01:43.9]} 60... Ke8 {[%clk 0:00:04.7]} 61. f6
{[%clk 0:01:43.8]} 61... Kf8 {[%clk 0:00:04.2]} 1-0

[Event "*** Titled Tuesday Blitz"]
[Site "Chess.com"]
[Date "2020.05.12"]
[Round "2"]
[White "RamonManon0g"]
[Black "Mizner"]
[Result "0-1"]
[WhiteElo "2262"]
[BlackElo "2495"]
[TimeControl "180+1"]
[EndTime "10:17:53 PDT"]
[Termination "Mizner won by checkmate"]

1. d4 {[%clk 0:03:00.9]} 1... d5 {[%clk 0:03:00.1]} 2. c4 {[%clk 0:03:01.3]}
2... e6 {[%clk 0:03:00.4]} 3. cxd5 {[%clk 0:03:01.7]} 3... exd5 {[%clk 0:03:00]}
4. Nc3 {[%clk 0:03:02.2]} 4... c6 {[%clk 0:02:59.1]} 5. Qc2 {[%clk 0:03:02.3]}
5... g6 {[%clk 0:02:56.8]} 6. e3 {[%clk 0:02:59.8]} 6... Bf5 {[%clk 0:02:55]} 7.
Bd3 {[%clk 0:03:00.3]} 7... Ne7 {[%clk 0:02:54]} 8. Nf3 {[%clk 0:03:00.4]} 8...
Bg7 {[%clk 0:02:52.9]} 9. O-O {[%clk 0:02:59.2]} 9... Na6 {[%clk 0:02:52.3]} 10.
a3 {[%clk 0:02:59.3]} 10... Nc7 {[%clk 0:02:50.4]} 11. Ne2 {[%clk 0:02:59.6]}
11... O-O {[%clk 0:02:49.3]} 12. Ng3 {[%clk 0:02:59.9]} 12... Bxd3 {[%clk
0:02:48.9]} 13. Qxd3 {[%clk 0:03:00.8]} 13... Ne6 {[%clk 0:02:48.3]} 14. b4
{[%clk 0:03:00]} 14... a5 {[%clk 0:02:42.7]} 15. Rb1 {[%clk 0:02:58.4]} 15...
axb4 {[%clk 0:02:29]} 16. axb4 {[%clk 0:02:55.3]} 16... Nc7 {[%clk 0:02:29.6]}
17. h3 {[%clk 0:02:47.6]} 17... Nc8 {[%clk 0:02:27.4]} 18. Ne2 {[%clk
0:02:47.2]} 18... Nd6 {[%clk 0:02:27.1]} 19. Nd2 {[%clk 0:02:47.1]} 19... b5
{[%clk 0:02:11.6]} 20. f3 {[%clk 0:02:44.6]} 20... Re8 {[%clk 0:02:05.1]} 21. e4
{[%clk 0:02:43.8]} 21... dxe4 {[%clk 0:01:56.4]} 22. fxe4 {[%clk 0:02:44.7]}
22... Ne6 {[%clk 0:01:52]} 23. e5 {[%clk 0:02:39]} 23... Nf5 {[%clk 0:01:48.8]}
24. Nf3 {[%clk 0:02:39.1]} 24... Qb6 {[%clk 0:01:41.6]} 25. Kh2 {[%clk
0:02:27.9]} 25... Red8 {[%clk 0:01:40.7]} 26. Be3 {[%clk 0:02:25.3]} 26... Nxe3
{[%clk 0:01:34.1]} 27. Qxe3 {[%clk 0:02:26.2]} 27... Ra2 {[%clk 0:01:26.5]} 28.
Rfd1 {[%clk 0:02:20]} 28... h5 {[%clk 0:01:14.5]} 29. Nc3 {[%clk 0:02:14.7]}
29... Ra3 {[%clk 0:01:14.2]} 30. Qd2 {[%clk 0:02:12.8]} 30... Nxd4 {[%clk
0:01:09.6]} 31. Nxd4 {[%clk 0:02:11]} 31... Bxe5+ {[%clk 0:01:09.2]} 32. Kh1
{[%clk 0:02:10]} 32... Rxd4 {[%clk 0:01:06.8]} 33. Qe1 {[%clk 0:02:01.9]} 33...
Rxd1 {[%clk 0:01:01.1]} 34. Nxd1 {[%clk 0:02:02.8]} 34... Qd4 {[%clk 0:00:47.4]}
35. Qf1 {[%clk 0:01:54.1]} 35... Qe4 {[%clk 0:00:32.4]} 36. Nf2 {[%clk
0:01:51.1]} 36... Qf4 {[%clk 0:00:30.4]} 37. Qg1 {[%clk 0:01:51.6]} 37... Bd4
{[%clk 0:00:25.3]} 38. Rf1 {[%clk 0:01:44]} 38... Qh4 {[%clk 0:00:17.6]} 39. Kh2
{[%clk 0:01:29.7]} 39... Ra2 {[%clk 0:00:16.9]} 40. g3 {[%clk 0:01:28.9]} 40...
Qf6 {[%clk 0:00:16.8]} 41. Kg2 {[%clk 0:01:28.8]} 41... Kf8 {[%clk 0:00:16.4]}
42. h4 {[%clk 0:01:29.5]} 42... Ke7 {[%clk 0:00:15.2]} 43. Re1+ {[%clk
0:01:29.9]} 43... Kd6 {[%clk 0:00:15.4]} 44. Rf1 {[%clk 0:01:26.8]} 44... Kd5
{[%clk 0:00:14.8]} 45. g4 {[%clk 0:01:25.2]} 45... Rxf2+ {[%clk 0:00:13.8]} 46.
Rxf2 {[%clk 0:01:25.4]} 46... Qxf2+ {[%clk 0:00:13.7]} 47. Qxf2 {[%clk
0:01:26.3]} 47... Bxf2 {[%clk 0:00:14]} 48. Kxf2 {[%clk 0:01:27.2]} 48... hxg4
{[%clk 0:00:14.3]} 49. Kg3 {[%clk 0:01:27.7]} 49... f5 {[%clk 0:00:14.5]} 50.
Kf4 {[%clk 0:01:28.2]} 50... c5 {[%clk 0:00:13.9]} 51. bxc5 {[%clk 0:01:28.2]}
51... Kxc5 {[%clk 0:00:14]} 52. Kg5 {[%clk 0:01:29.1]} 52... g3 {[%clk
0:00:14.3]} 53. Kxg6 {[%clk 0:01:30]} 53... g2 {[%clk 0:00:14.9]} 54. h5 {[%clk
0:01:30.9]} 54... g1=Q+ {[%clk 0:00:15.5]} 55. Kh7 {[%clk 0:01:31.2]} 55... Qg5
{[%clk 0:00:14.8]} 56. h6 {[%clk 0:01:32.1]} 56... f4 {[%clk 0:00:15.1]} 57. Kh8
{[%clk 0:01:31.3]} 57... Qxh6+ {[%clk 0:00:15.7]} 58. Kg8 {[%clk 0:01:31.6]}
58... Qf6 {[%clk 0:00:15.7]} 59. Kh7 {[%clk 0:01:31.8]} 59... Qg5 {[%clk
0:00:16.1]} 60. Kh8 {[%clk 0:01:31.7]} 60... Kd6 {[%clk 0:00:16.8]} 61. Kh7
{[%clk 0:01:32]} 61... Ke7 {[%clk 0:00:17.7]} 62. Kh8 {[%clk 0:01:32.8]} 62...
Kf7 {[%clk 0:00:18.6]} 63. Kh7 {[%clk 0:01:33.5]} 63... Qg7# {[%clk 0:00:19.4]}
0-1

[Event "*** Titled Tuesday Blitz"]
[Site "Chess.com"]
[Date "2020.05.12"]
[Round "2"]
[White "talaicito"]
[Black "Mili_Brizzi"]
[Result "0-1"]
[WhiteElo "2234"]
[BlackElo "2460"]
[TimeControl "180+1"]
[EndTime "10:17:53 PDT"]
[Termination "Mili_Brizzi won on time"]

1. d4 {[%clk 0:03:00.9]} 1... d5 {[%clk 0:02:55.2]} 2. Bf4 {[%clk 0:03:01]} 2...
Nf6 {[%clk 0:02:53.9]} 3. Nc3 {[%clk 0:03:01.1]} 3... c6 {[%clk 0:02:50.2]} 4.
e3 {[%clk 0:03:01.1]} 4... Bf5 {[%clk 0:02:43.7]} 5. f3 {[%clk 0:03:00.9]} 5...
e6 {[%clk 0:02:43.4]} 6. g4 {[%clk 0:03:01]} 6... Bg6 {[%clk 0:02:41.8]} 7. h4
{[%clk 0:03:01.9]} 7... h5 {[%clk 0:02:41.3]} 8. g5 {[%clk 0:03:02.2]} 8... Nfd7
{[%clk 0:02:40.9]} 9. Bd3 {[%clk 0:03:02.8]} 9... Bxd3 {[%clk 0:02:35]} 10. Qxd3
{[%clk 0:03:03.7]} 10... g6 {[%clk 0:02:34.8]} 11. Nge2 {[%clk 0:03:04.2]} 11...
Bg7 {[%clk 0:02:33.9]} 12. e4 {[%clk 0:02:59.6]} 12... Na6 {[%clk 0:02:28.7]}
13. a3 {[%clk 0:02:58]} 13... Qe7 {[%clk 0:02:17.7]} 14. O-O-O {[%clk
0:02:55.8]} 14... O-O-O {[%clk 0:02:16.2]} 15. Rhe1 {[%clk 0:02:50]} 15... Nb6
{[%clk 0:02:03.6]} 16. Kb1 {[%clk 0:02:32.6]} 16... Nc4 {[%clk 0:02:00.4]} 17.
Nc1 {[%clk 0:02:13.3]} 17... Qd7 {[%clk 0:01:57]} 18. Nb3 {[%clk 0:02:04.1]}
18... Rhe8 {[%clk 0:01:55]} 19. Nc5 {[%clk 0:01:28.8]} 19... Nxc5 {[%clk
0:01:41.9]} 20. dxc5 {[%clk 0:01:29.7]} 20... Qe7 {[%clk 0:01:18.1]} 21. Na4
{[%clk 0:01:19.3]} 21... b5 {[%clk 0:00:51.3]} 22. cxb6 {[%clk 0:01:13.9]} 22...
axb6 {[%clk 0:00:52.2]} 23. Qb3 {[%clk 0:00:58.6]} 23... Qa7 {[%clk 0:00:49.4]}
24. exd5 {[%clk 0:00:56.3]} 24... exd5 {[%clk 0:00:42]} 25. c3 {[%clk
0:00:45.7]} 25... b5 {[%clk 0:00:29.6]} 26. Qb4 {[%clk 0:00:31.4]} 26... bxa4
{[%clk 0:00:29.2]} 27. Ka2 {[%clk 0:00:11.7]} 27... Qb7 {[%clk 0:00:27.7]} 28.
b3 {[%clk 0:00:04.8]} 28... axb3+ {[%clk 0:00:26.3]} 29. Kxb3 {[%clk 0:00:04.9]}
29... Qxb4+ {[%clk 0:00:25.8]} 30. axb4 {[%clk 0:00:04.4]} 30... Kd7 {[%clk
0:00:24]} 31. Ra1 {[%clk 0:00:03.7]} 31... Ra8 {[%clk 0:00:23.2]} 0-1